{"text_format":"3","workbook":"xlsx","n_sheets":1,"sheets":["Preglednica izposojenih knjig"],"not_rendered":{"defined_names":4},"read":"whole","date_system":"1900"}

{"sheet":"Preglednica izposojenih knjig","index":0,"n_rows":9,"n_cols":8,"rows_kept":9,"merged":[[0,1,0,4],[0,5,0,6]]}
[null,"Preglednica za izposojene knjige iz knjižnice",{"$nulls":3},"ŠTEVILO DNI DO VRAČILA: ",null,10]
["Zapadlo","ŠTUDENT","E-POŠTNI NASLOV OSEBE ZA STIK","TELEFONSKA ŠTEVILKA OSEBE ZA STIK","NASLOV KNJIGE","DATUM IZPOSOJE","DATUM VRAČILA","DNEVI"]
[{"$f":"IFERROR(((Knjige[[#This Row],[DATUM IZPOSOJE]]+ŠteviloDniIzposoje)<TODAY())*(LEN(Knjige[[#This Row],[DATUM VRAČILA]])=0)*(LEN(Knjige[[#This Row],[DATUM IZPOSOJE]])>0),0)","v":0},"Marija Ušaj","nekdo@example.com","555-0100","Hišica v preriji",{"$f":"DATE(YEAR(TODAY()),1,14)","v":"2018-01-14"},{"$f":"DATE(YEAR(TODAY()),1,21)","v":"2018-01-21"},{"$f":"IFERROR(IF(Knjige[[#This Row],[DATUM VRAČILA]]=\"\",IF(Knjige[[#This Row],[DATUM IZPOSOJE]]<>\"\", TODAY()-Knjige[[#This Row],[DATUM IZPOSOJE]],\"\"),Knjige[[#This Row],[DATUM VRAČILA]]-Knjige[[#This Row],[DATUM IZPOSOJE]]), \"\")","v":7}]
[{"$f":"IFERROR(((Knjige[[#This Row],[DATUM IZPOSOJE]]+ŠteviloDniIzposoje)<TODAY())*(LEN(Knjige[[#This Row],[DATUM VRAČILA]])=0)*(LEN(Knjige[[#This Row],[DATUM IZPOSOJE]])>0),0)","v":0},"Stane Makovec","nekdo@example.com","555-0101","Čudežna mreža",{"$f":"DATE(YEAR(TODAY()),2,15)","v":"2018-02-15"},{"$f":"DATE(YEAR(TODAY()),2,18)","v":"2018-02-18"},{"$f":"IFERROR(IF(Knjige[[#This Row],[DATUM VRAČILA]]=\"\",IF(Knjige[[#This Row],[DATUM IZPOSOJE]]<>\"\", TODAY()-Knjige[[#This Row],[DATUM IZPOSOJE]],\"\"),Knjige[[#This Row],[DATUM VRAČILA]]-Knjige[[#This Row],[DATUM IZPOSOJE]]), \"\")","v":3}]
[{"$f":"IFERROR(((Knjige[[#This Row],[DATUM IZPOSOJE]]+ŠteviloDniIzposoje)<TODAY())*(LEN(Knjige[[#This Row],[DATUM VRAČILA]])=0)*(LEN(Knjige[[#This Row],[DATUM IZPOSOJE]])>0),0)","v":0},"Karla Žan","nekdo@example.com","555-0102","Pekarna Mišmaš",{"$f":"DATE(YEAR(TODAY()),2,17)","v":"2018-02-17"},{"$f":"DATE(YEAR(TODAY()),2,22)","v":"2018-02-22"},{"$f":"IFERROR(IF(Knjige[[#This Row],[DATUM VRAČILA]]=\"\",IF(Knjige[[#This Row],[DATUM IZPOSOJE]]<>\"\", TODAY()-Knjige[[#This Row],[DATUM IZPOSOJE]],\"\"),Knjige[[#This Row],[DATUM VRAČILA]]-Knjige[[#This Row],[DATUM IZPOSOJE]]), \"\")","v":5}]
[{"$f":"IFERROR(((Knjige[[#This Row],[DATUM IZPOSOJE]]+ŠteviloDniIzposoje)<TODAY())*(LEN(Knjige[[#This Row],[DATUM VRAČILA]])=0)*(LEN(Knjige[[#This Row],[DATUM IZPOSOJE]])>0),0)","v":0},"Miha Zupan","nekdo@example.com","555-0103","Žogica Marogica",{"$f":"DATE(YEAR(TODAY()),2,17)","v":"2018-02-17"},{"$f":"DATE(YEAR(TODAY()),2,25)","v":"2018-02-25"},{"$f":"IFERROR(IF(Knjige[[#This Row],[DATUM VRAČILA]]=\"\",IF(Knjige[[#This Row],[DATUM IZPOSOJE]]<>\"\", TODAY()-Knjige[[#This Row],[DATUM IZPOSOJE]],\"\"),Knjige[[#This Row],[DATUM VRAČILA]]-Knjige[[#This Row],[DATUM IZPOSOJE]]), \"\")","v":8}]
[{"$f":"IFERROR(((Knjige[[#This Row],[DATUM IZPOSOJE]]+ŠteviloDniIzposoje)<TODAY())*(LEN(Knjige[[#This Row],[DATUM VRAČILA]])=0)*(LEN(Knjige[[#This Row],[DATUM IZPOSOJE]])>0),0)","v":0},"Katja lah","nekdo@example.com","555-0104","Matilda",{"$f":"DATE(YEAR(TODAY()),2,18)","v":"2018-02-18"},{"$f":"DATE(YEAR(TODAY()),2,28)","v":"2018-02-28"},{"$f":"IFERROR(IF(Knjige[[#This Row],[DATUM VRAČILA]]=\"\",IF(Knjige[[#This Row],[DATUM IZPOSOJE]]<>\"\", TODAY()-Knjige[[#This Row],[DATUM IZPOSOJE]],\"\"),Knjige[[#This Row],[DATUM VRAČILA]]-Knjige[[#This Row],[DATUM IZPOSOJE]]), \"\")","v":10}]
[{"$f":"IFERROR(((Knjige[[#This Row],[DATUM IZPOSOJE]]+ŠteviloDniIzposoje)<TODAY())*(LEN(Knjige[[#This Row],[DATUM VRAČILA]])=0)*(LEN(Knjige[[#This Row],[DATUM IZPOSOJE]])>0),0)","v":1},"Metka Munda","nekdo@example.com","555-0105","Zgodbe iz Narnije",{"$f":"DATE(YEAR(TODAY()),1,23)","v":"2018-01-23"},null,{"$f":"IFERROR(IF(Knjige[[#This Row],[DATUM VRAČILA]]=\"\",IF(Knjige[[#This Row],[DATUM IZPOSOJE]]<>\"\", TODAY()-Knjige[[#This Row],[DATUM IZPOSOJE]],\"\"),Knjige[[#This Row],[DATUM VRAČILA]]-Knjige[[#This Row],[DATUM IZPOSOJE]]), \"\")","v":164}]
[{"$f":"IFERROR(((Knjige[[#This Row],[DATUM IZPOSOJE]]+ŠteviloDniIzposoje)<TODAY())*(LEN(Knjige[[#This Row],[DATUM VRAČILA]])=0)*(LEN(Knjige[[#This Row],[DATUM IZPOSOJE]])>0),0)","v":0},"Saša Novak","nekdo@example.com","555-0106","Alica v čudežni deželi",{"$f":"TODAY()","v":"2018-07-06"},null,{"$f":"IFERROR(IF(Knjige[[#This Row],[DATUM VRAČILA]]=\"\",IF(Knjige[[#This Row],[DATUM IZPOSOJE]]<>\"\", TODAY()-Knjige[[#This Row],[DATUM IZPOSOJE]],\"\"),Knjige[[#This Row],[DATUM VRAČILA]]-Knjige[[#This Row],[DATUM IZPOSOJE]]), \"\")","v":0}]